[Event "*** Titled Tuesday Blitz"]
[Site "Chess.com"]
[Date "2020.04.28"]
[Round "2"]
[White "kosmeg"]
[Black "Barcelona_Guy"]
[Result "0-1"]
[WhiteElo "2386"]
[BlackElo "2707"]
[TimeControl "180+1"]
[EndTime "10:18:18 PDT"]
[Termination "Barcelona_Guy won by resignation"]

1. d4 {[%clk 0:03:00.9]} 1... Nf6 {[%clk 0:02:59.5]} 2. c4 {[%clk 0:03:01]} 2...
g6 {[%clk 0:02:59.9]} 3. Nc3 {[%clk 0:03:00.5]} 3... d5 {[%clk 0:03:00.1]} 4.
Nf3 {[%clk 0:02:59.4]} 4... Bg7 {[%clk 0:02:59.6]} 5. Bg5 {[%clk 0:02:59]} 5...
Ne4 {[%clk 0:02:58.6]} 6. Bf4 {[%clk 0:02:58.2]} 6... O-O {[%clk 0:02:57.5]} 7.
e3 {[%clk 0:02:57]} 7... c5 {[%clk 0:02:52.9]} 8. cxd5 {[%clk 0:02:48.4]} 8...
Bf5 {[%clk 0:02:52]} 9. Bc4 {[%clk 0:02:30.5]} 9... cxd4 {[%clk 0:02:48.4]} 10.
Nxd4 {[%clk 0:02:29.8]} 10... Nxc3 {[%clk 0:02:48.2]} 11. bxc3 {[%clk
0:02:29.1]} 11... Be4 {[%clk 0:02:44.6]} 12. O-O {[%clk 0:02:13.3]} 12... Bxd5
{[%clk 0:02:44.3]} 13. Bxd5 {[%clk 0:01:57]} 13... Qxd5 {[%clk 0:02:45.2]} 14.
Bxb8 {[%clk 0:01:46.8]} 14... Raxb8 {[%clk 0:02:42.5]} 15. Qb3 {[%clk
0:01:47.7]} 15... Qc5 {[%clk 0:02:27.7]} 16. Rfd1 {[%clk 0:01:43.5]} 16... Rfc8
{[%clk 0:02:24.8]} 17. Rac1 {[%clk 0:01:43.5]} 17... b5 {[%clk 0:01:58.4]} 18.
h3 {[%clk 0:01:29.4]} 18... a5 {[%clk 0:01:56.8]} 19. Rb1 {[%clk 0:01:06.6]}
19... a4 {[%clk 0:01:18.9]} 20. Qb4 {[%clk 0:01:00.1]} 20... Qxb4 {[%clk
0:01:13.3]} 21. Rxb4 {[%clk 0:00:45.6]} 21... Rxc3 {[%clk 0:00:47.8]} 22. Rxb5
{[%clk 0:00:44.8]} 22... Rd8 {[%clk 0:00:28.8]} 23. Rdb1 {[%clk 0:00:20.9]}
23... Bxd4 {[%clk 0:00:28.5]} 24. exd4 {[%clk 0:00:21.6]} 24... Rxd4 {[%clk
0:00:29.4]} 25. R5b4 {[%clk 0:00:21]} 25... Rxb4 {[%clk 0:00:26.7]} 26. Rxb4
{[%clk 0:00:21.9]} 26... Rc1+ {[%clk 0:00:27.3]} 27. Kh2 {[%clk 0:00:20.8]}
27... Rc2 {[%clk 0:00:28.2]} 28. Rxa4 {[%clk 0:00:20.2]} 28... Rxf2 {[%clk
0:00:28.7]} 29. Kg3 {[%clk 0:00:19.2]} 29... Rf1 {[%clk 0:00:27.4]} 30. Ra7
{[%clk 0:00:18.2]} 30... e6 {[%clk 0:00:18.6]} 31. a4 {[%clk 0:00:17.7]} 31...
Kg7 {[%clk 0:00:19]} 32. a5 {[%clk 0:00:17.3]} 32... g5 {[%clk 0:00:19]} 33. Kg4
{[%clk 0:00:16.9]} 33... Kg6 {[%clk 0:00:18.6]} 34. Ra8 {[%clk 0:00:16.4]} 34...
h5+ {[%clk 0:00:18.4]} 35. Kg3 {[%clk 0:00:16.9]} 35... Ra1 {[%clk 0:00:18]} 36.
Kf3 {[%clk 0:00:15.1]} 36... Kf5 {[%clk 0:00:15.6]} 37. g4+ {[%clk 0:00:14.3]}
37... hxg4+ {[%clk 0:00:16.5]} 38. hxg4+ {[%clk 0:00:15.2]} 38... Ke5 {[%clk
0:00:17]} 39. Rg8 {[%clk 0:00:13.5]} 39... Ra3+ {[%clk 0:00:15]} 40. Ke2 {[%clk
0:00:13.1]} 40... Kf4 {[%clk 0:00:15]} 41. Rf8 {[%clk 0:00:10.9]} 41... Rxa5
{[%clk 0:00:15.1]} 42. Rxf7+ {[%clk 0:00:11.1]} 42... Kxg4 {[%clk 0:00:15.6]}
43. Rf6 {[%clk 0:00:11]} 43... Re5+ {[%clk 0:00:15.2]} 44. Kd2 {[%clk 0:00:09]}
44... Kg3 {[%clk 0:00:15]} 45. Rf8 {[%clk 0:00:07.6]} 45... g4 {[%clk
0:00:15.2]} 0-1

[Event "*** Titled Tuesday Blitz"]
[Site "Chess.com"]
[Date "2020.04.28"]
[Round "2"]
[White "woodhy"]
[Black "RaphaeI"]
[Result "0-1"]
[WhiteElo "2327"]
[BlackElo "2644"]
[TimeControl "180+1"]
[EndTime "10:18:18 PDT"]
[Termination "RaphaeI won by checkmate"]

1. e4 {[%clk 0:03:00.9]} 1... c5 {[%clk 0:02:59.7]} 2. Nf3 {[%clk 0:02:58.3]}
2... d6 {[%clk 0:02:59.8]} 3. d4 {[%clk 0:02:57.1]} 3... cxd4 {[%clk 0:03:00.2]}
4. Nxd4 {[%clk 0:02:58]} 4... Nf6 {[%clk 0:03:00.3]} 5. f3 {[%clk 0:02:58.2]}
5... e5 {[%clk 0:02:59.8]} 6. Bb5+ {[%clk 0:02:57.2]} 6... Nbd7 {[%clk
0:02:59.3]} 7. Nf5 {[%clk 0:02:55.8]} 7... d5 {[%clk 0:02:59]} 8. exd5 {[%clk
0:02:53.4]} 8... a6 {[%clk 0:02:59.5]} 9. Ba4 {[%clk 0:02:51.7]} 9... b5 {[%clk
0:02:59.7]} 10. Bb3 {[%clk 0:02:51.9]} 10... Nc5 {[%clk 0:02:59.8]} 11. Ne3
{[%clk 0:02:51]} 11... Bb7 {[%clk 0:02:56]} 12. O-O {[%clk 0:02:51]} 12... Nxb3
{[%clk 0:02:55.4]} 13. axb3 {[%clk 0:02:49.4]} 13... Bc5 {[%clk 0:02:45]} 14.
Kh1 {[%clk 0:02:48.7]} 14... O-O {[%clk 0:01:25.2]} 15. Nc3 {[%clk 0:02:40.6]}
15... Qb6 {[%clk 0:01:17.3]} 16. Qe2 {[%clk 0:02:23.8]} 16... Rad8 {[%clk
0:01:12.5]} 17. Ne4 {[%clk 0:02:22.7]} 17... Nxd5 {[%clk 0:01:07.7]} 18. Nxc5
{[%clk 0:02:19.2]} 18... Qxc5 {[%clk 0:01:07.3]} 19. Nxd5 {[%clk 0:02:16.2]}
19... Rxd5 {[%clk 0:01:04.5]} 20. Be3 {[%clk 0:02:16.1]} 20... Qc6 {[%clk
0:01:04.9]} 21. Rfd1 {[%clk 0:02:13.3]} 21... e4 {[%clk 0:01:05.2]} 22. Rxd5
{[%clk 0:02:06.5]} 22... Qxd5 {[%clk 0:01:05.1]} 23. Rd1 {[%clk 0:02:05.3]}
23... exf3 {[%clk 0:01:05.4]} 24. Qe1 {[%clk 0:01:51.8]} 24... fxg2+ {[%clk
0:00:32.9]} 25. Kg1 {[%clk 0:01:45.1]} 25... Qe4 {[%clk 0:00:33.8]} 26. Qf2
{[%clk 0:01:41.5]} 26... Re8 {[%clk 0:00:32.1]} 27. Rd4 {[%clk 0:01:37.8]} 27...
Qg6 {[%clk 0:00:26.4]} 28. Rd7 {[%clk 0:01:34.2]} 28... Bc6 {[%clk 0:00:20.6]}
29. Rd3 {[%clk 0:01:28.3]} 29... h6 {[%clk 0:00:18.5]} 30. Bd4 {[%clk
0:01:25.3]} 30... Qg4 {[%clk 0:00:14.7]} 31. h3 {[%clk 0:01:19.9]} 31... Qe2
{[%clk 0:00:05.4]} 32. Rd2 {[%clk 0:01:00.4]} 32... Qe1+ {[%clk 0:00:04.9]} 33.
Kh2 {[%clk 0:00:58.4]} 33... Qh1+ {[%clk 0:00:04.7]} 34. Kg3 {[%clk 0:00:58.6]}
34... g1=Q+ {[%clk 0:00:05]} 35. Qxg1 {[%clk 0:00:58.3]} 35... Qf3+ {[%clk
0:00:05.2]} 36. Kh2 {[%clk 0:00:58.4]} 36... Re2+ {[%clk 0:00:05.3]} 37. Rxe2
{[%clk 0:00:57.8]} 37... Qxe2+ {[%clk 0:00:06.2]} 38. Kg3 {[%clk 0:00:57.7]}
38... Qxc2 {[%clk 0:00:05.9]} 39. Bc3 {[%clk 0:00:53.1]} 39... Qd3+ {[%clk
0:00:03.5]} 40. Kf2 {[%clk 0:00:51]} 40... Qf3+ {[%clk 0:00:02.6]} 41. Ke1
{[%clk 0:00:51]} 41... f6 {[%clk 0:00:02.9]} 42. h4 {[%clk 0:00:48.3]} 42...
Qe4+ {[%clk 0:00:02.6]} 43. Kd2 {[%clk 0:00:47.5]} 43... Qxh4 {[%clk 0:00:03.1]}
44. Bd4 {[%clk 0:00:46.8]} 44... Qe4 {[%clk 0:00:02.8]} 45. Kc3 {[%clk
0:00:46.3]} 45... Qf3+ {[%clk 0:00:02.8]} 46. Kb4 {[%clk 0:00:46.3]} 46... Kh7
{[%clk 0:00:03]} 47. Qb1+ {[%clk 0:00:44.9]} 47... Be4 {[%clk 0:00:03.1]} 48.
Qg1 {[%clk 0:00:45.8]} 48... Qf5 {[%clk 0:00:03]} 49. Ka5 {[%clk 0:00:45.3]}
49... b4+ {[%clk 0:00:02.3]} 50. Kxb4 {[%clk 0:00:43.5]} 50... Qb5+ {[%clk
0:00:02]} 51. Kc3 {[%clk 0:00:43.8]} 51... Qd3+ {[%clk 0:00:02.1]} 52. Kb4
{[%clk 0:00:44.1]} 52... Bd5 {[%clk 0:00:01.9]} 53. Bc3 {[%clk 0:00:38.2]} 53...
Qb5+ {[%clk 0:00:01.9]} 54. Ka3 {[%clk 0:00:38.6]} 54... Qxb3# {[%clk
0:00:02.1]} 0-1

[Event "*** Titled Tuesday Blitz"]
[Site "Chess.com"]
[Date "2020.04.28"]
[Round "2"]
[White "rpragchess"]
[Black "EvilMorty23"]
[Result "1-0"]
[WhiteElo "2812"]
[BlackElo "2533"]
[TimeControl "180+1"]
[EndTime "10:18:19 PDT"]
[Termination "rpragchess won on time"]

1. Nf3 {[%clk 0:03:00.9]} 1... Nf6 {[%clk 0:03:00]} 2. g3 {[%clk 0:03:01.3]}
2... b5 {[%clk 0:03:00.2]} 3. e3 {[%clk 0:03:00.3]} 3... a6 {[%clk 0:02:53.6]}
4. Bg2 {[%clk 0:03:00.2]} 4... Bb7 {[%clk 0:02:53.7]} 5. b3 {[%clk 0:03:00.4]}
5... e6 {[%clk 0:02:53.4]} 6. Bb2 {[%clk 0:03:00.9]} 6... Be7 {[%clk 0:02:53.8]}
7. O-O {[%clk 0:03:01.5]} 7... O-O {[%clk 0:02:54.1]} 8. c4 {[%clk 0:03:02.1]}
8... c5 {[%clk 0:02:49.8]} 9. Qe2 {[%clk 0:03:00.7]} 9... b4 {[%clk 0:02:46.8]}
10. a3 {[%clk 0:02:52.5]} 10... d6 {[%clk 0:02:43.7]} 11. axb4 {[%clk
0:02:50.7]} 11... cxb4 {[%clk 0:02:44.6]} 12. d4 {[%clk 0:02:49.4]} 12... Qb6
{[%clk 0:02:39]} 13. Nbd2 {[%clk 0:02:49.2]} 13... Nbd7 {[%clk 0:02:38.9]} 14.
e4 {[%clk 0:02:46]} 14... Ne8 {[%clk 0:02:24.2]} 15. Rfd1 {[%clk 0:02:35.2]}
15... Nc7 {[%clk 0:02:16.8]} 16. c5 {[%clk 0:02:04.2]} 16... dxc5 {[%clk
0:02:07.3]} 17. Nc4 {[%clk 0:02:04.2]} 17... Qa7 {[%clk 0:02:05.8]} 18. d5
{[%clk 0:01:59.3]} 18... exd5 {[%clk 0:02:03.1]} 19. exd5 {[%clk 0:02:00.2]}
19... Bf6 {[%clk 0:01:59.6]} 20. d6 {[%clk 0:01:43.6]} 20... Nb5 {[%clk
0:01:59]} 21. Rd3 {[%clk 0:01:02.6]} 21... Rfe8 {[%clk 0:01:47]} 22. Qd2 {[%clk
0:00:59.5]} 22... Nc3 {[%clk 0:01:29]} 23. Re3 {[%clk 0:00:57.1]} 23... Bc6
{[%clk 0:00:44.9]} 24. Rae1 {[%clk 0:00:47.5]} 24... Rxe3 {[%clk 0:00:44.9]} 25.
Qxe3 {[%clk 0:00:47.4]} 25... h6 {[%clk 0:00:39]} 26. h4 {[%clk 0:00:42.9]}
26... Nf8 {[%clk 0:00:35.2]} 27. Qd3 {[%clk 0:00:36.3]} 27... Rd8 {[%clk
0:00:33.8]} 28. g4 {[%clk 0:00:34.5]} 28... Ne6 {[%clk 0:00:30.8]} 29. Bc1
{[%clk 0:00:17]} 29... Qa8 {[%clk 0:00:21]} 30. g5 {[%clk 0:00:09.5]} 30... hxg5
{[%clk 0:00:20.5]} 31. hxg5 {[%clk 0:00:09.3]} 31... Bd4 {[%clk 0:00:18.7]} 32.
Qf5 {[%clk 0:00:07.1]} 32... Be4 {[%clk 0:00:16.3]} 33. Qg4 {[%clk 0:00:06.4]}
33... Bd5 {[%clk 0:00:10]} 34. g6 {[%clk 0:00:04.1]} 34... Qb7 {[%clk
0:00:05.7]} 35. gxf7+ {[%clk 0:00:03.3]} 35... Qxf7 {[%clk 0:00:05.9]} 36. Nfe5
{[%clk 0:00:03.8]} 36... Bxe5 {[%clk 0:00:05.5]} 37. Nxe5 {[%clk 0:00:03.9]}
37... Qf6 {[%clk 0:00:03.4]} 38. Nc6 {[%clk 0:00:03]} 38... Bxg2 {[%clk
0:00:02.7]} 39. Rxe6 {[%clk 0:00:02.6]} 1-0

[Event "*** Titled Tuesday Blitz"]
[Site "Chess.com"]
[Date "2020.04.28"]
[Round "2"]
[White "Zufi1811"]
[Black "farzadbfd"]
[Result "1-0"]
[WhiteElo "2488"]
[BlackElo "2666"]
[TimeControl "180+1"]
[EndTime "10:18:19 PDT"]
[Termination "Zufi1811 won by checkmate"]

1. e4 {[%clk 0:03:00.9]} 1... e5 {[%clk 0:02:59.9]} 2. Nf3 {[%clk 0:03:00.6]}
2... Nc6 {[%clk 0:03:00.4]} 3. Bb5 {[%clk 0:03:01.1]} 3... a6 {[%clk 0:03:00.9]}
4. Ba4 {[%clk 0:03:01.7]} 4... Nf6 {[%clk 0:03:01.4]} 5. O-O {[%clk 0:03:02.2]}
5... b5 {[%clk 0:03:02.1]} 6. Bb3 {[%clk 0:03:01.5]} 6... Bc5 {[%clk 0:03:03]}
7. a4 {[%clk 0:03:01]} 7... Rb8 {[%clk 0:03:02.8]} 8. c3 {[%clk 0:03:01.3]} 8...
d6 {[%clk 0:03:02.6]} 9. d4 {[%clk 0:03:01.7]} 9... Bb6 {[%clk 0:03:03.2]} 10.
axb5 {[%clk 0:03:02.3]} 10... axb5 {[%clk 0:03:04.1]} 11. Na3 {[%clk 0:03:02.8]}
11... exd4 {[%clk 0:02:59.2]} 12. cxd4 {[%clk 0:03:01.6]} 12... Bg4 {[%clk
0:02:59.8]} 13. Nxb5 {[%clk 0:02:56.5]} 13... O-O {[%clk 0:03:00]} 14. Bc2
{[%clk 0:02:53.8]} 14... Bxf3 {[%clk 0:02:59.4]} 15. gxf3 {[%clk 0:02:54.7]}
15... Nh5 {[%clk 0:02:59.4]} 16. Be3 {[%clk 0:02:44.7]} 16... Qh4 {[%clk
0:02:55.5]} 17. Kh1 {[%clk 0:02:44.2]} 17... Ne7 {[%clk 0:02:34.7]} 18. Rg1
{[%clk 0:02:39.2]} 18... Ng6 {[%clk 0:02:32.6]} 19. Rg4 {[%clk 0:02:36.3]} 19...
Qh3 {[%clk 0:02:32.7]} 20. Bd3 {[%clk 0:01:30.8]} 20... Nh4 {[%clk 0:02:30.2]}
21. Bf1 {[%clk 0:01:29]} 21... Qxf3+ {[%clk 0:02:28]} 22. Qxf3 {[%clk
0:01:29.4]} 22... Nxf3 {[%clk 0:02:28.9]} 23. Be2 {[%clk 0:01:29.7]} 23... f5
{[%clk 0:02:06.8]} 24. exf5 {[%clk 0:01:22.4]} 24... Rxf5 {[%clk 0:02:07.7]} 25.
Nc3 {[%clk 0:01:16.4]} 25... Nf6 {[%clk 0:02:05.9]} 26. Bxf3 {[%clk 0:01:04.6]}
26... Rxf3 {[%clk 0:02:02.2]} 27. Rg3 {[%clk 0:01:04.9]} 27... Rxg3 {[%clk
0:01:48.3]} 28. hxg3 {[%clk 0:01:05.8]} 28... Re8 {[%clk 0:01:45.5]} 29. Kg2
{[%clk 0:01:01.5]} 29... Ng4 {[%clk 0:01:45.5]} 30. Nd5 {[%clk 0:01:00]} 30...
Nf6 {[%clk 0:01:26.5]} 31. Nxf6+ {[%clk 0:00:41.6]} 31... gxf6 {[%clk
0:01:27.4]} 32. Kf3 {[%clk 0:00:23.8]} 32... Kf7 {[%clk 0:01:26.9]} 33. Rh1
{[%clk 0:00:16.7]} 33... Kg6 {[%clk 0:01:27.2]} 34. Rh6+ {[%clk 0:00:14.4]}
34... Kg7 {[%clk 0:01:27.4]} 35. Rh1 {[%clk 0:00:13.3]} 35... Ra8 {[%clk
0:01:28]} 36. Ke4 {[%clk 0:00:13]} 36... Ra2 {[%clk 0:01:23.6]} 37. Rb1 {[%clk
0:00:12.6]} 37... Kf7 {[%clk 0:01:21.2]} 38. Kd5 {[%clk 0:00:11.2]} 38... Ra5+
{[%clk 0:01:19.2]} 39. Kc6 {[%clk 0:00:11]} 39... Ke6 {[%clk 0:01:19.8]} 40. b4
{[%clk 0:00:09.2]} 40... Ra6 {[%clk 0:01:16.9]} 41. d5+ {[%clk 0:00:07.7]} 41...
Ke7 {[%clk 0:01:15.1]} 42. Bxb6 {[%clk 0:00:07.6]} 42... cxb6 {[%clk 0:01:10.3]}
43. b5 {[%clk 0:00:06.1]} 43... Ra2 {[%clk 0:01:08.5]} 44. Kxb6 {[%clk
0:00:04.4]} 44... Kd7 {[%clk 0:01:09.4]} 45. f4 {[%clk 0:00:01.4]} 45... Rh2
{[%clk 0:00:57.8]} 46. Rb3 {[%clk 0:00:01.2]} 46... Rd2 {[%clk 0:00:57.1]} 47.
Ra3 {[%clk 0:00:01.6]} 47... Rxd5 {[%clk 0:00:56.9]} 48. Ra7+ {[%clk 0:00:02.2]}
48... Ke6 {[%clk 0:00:57.6]} 49. Rxh7 {[%clk 0:00:02.7]} 49... Rd3 {[%clk
0:00:57.4]} 50. Kb7 {[%clk 0:00:02.4]} 50... Rxg3 {[%clk 0:00:56.9]} 51. b6
{[%clk 0:00:03]} 51... Rh3 {[%clk 0:00:55.9]} 52. Rxh3 {[%clk 0:00:02.7]} 52...
Kf5 {[%clk 0:00:53.8]} 53. Rh1 {[%clk 0:00:03.1]} 53... Kxf4 {[%clk 0:00:54.4]}
54. Rd1 {[%clk 0:00:03.9]} 54... d5 {[%clk 0:00:54.5]} 55. Kc6 {[%clk
0:00:04.3]} 55... d4 {[%clk 0:00:55.1]} 56. b7 {[%clk 0:00:04.5]} 56... Ke3
{[%clk 0:00:55.6]} 57. b8=Q {[%clk 0:00:05.3]} 57... d3 {[%clk 0:00:56.4]} 58.
Qg3+ {[%clk 0:00:05.2]} 58... Ke2 {[%clk 0:00:57.3]} 59. Qxd3+ {[%clk
0:00:04.7]} 59... Kf2 {[%clk 0:00:58.2]} 60. Rf1+ {[%clk 0:00:05.1]} 60... Kg2
{[%clk 0:00:59.1]} 61. Qf3+ {[%clk 0:00:05.6]} 61... Kh2 {[%clk 0:00:58.7]} 62.
Rh1# {[%clk 0:00:06.5]} 1-0

[Event "*** Titled Tuesday Blitz"]
[Site "Chess.com"]
[Date "2020.04.28"]
[Round "2"]
[White "GMHess"]
[Black "Borsuk_Konstantin"]
[Result "1-0"]
[WhiteElo "2892"]
[BlackElo "2566"]
[TimeControl "180+1"]
[EndTime "10:18:20 PDT"]
[Termination "GMHess won on time"]

1. b3 {[%clk 0:03:00.9]} 1... d5 {[%clk 0:02:54.8]} 2. Bb2 {[%clk 0:03:01.8]}
2... Nf6 {[%clk 0:02:54.8]} 3. h3 {[%clk 0:03:01.7]} 3... c5 {[%clk 0:02:53.6]}
4. d3 {[%clk 0:03:01.1]} 4... Nc6 {[%clk 0:02:53.5]} 5. Nd2 {[%clk 0:03:01.6]}
5... e5 {[%clk 0:02:50.3]} 6. e3 {[%clk 0:03:00.5]} 6... Bd6 {[%clk 0:02:49.3]}
7. g4 {[%clk 0:03:00.7]} 7... h6 {[%clk 0:02:44.1]} 8. Bg2 {[%clk 0:03:00.4]}
8... Be6 {[%clk 0:02:36.9]} 9. Ne2 {[%clk 0:03:00.3]} 9... g5 {[%clk 0:02:33.7]}
10. Ng3 {[%clk 0:02:57.9]} 10... h5 {[%clk 0:02:27.7]} 11. gxh5 {[%clk
0:02:53.1]} 11... Qd7 {[%clk 0:02:26.1]} 12. Nf3 {[%clk 0:02:48.9]} 12... Rg8
{[%clk 0:02:21.7]} 13. e4 {[%clk 0:02:33.4]} 13... d4 {[%clk 0:02:02.5]} 14. Bc1
{[%clk 0:02:20.9]} 14... Nh7 {[%clk 0:01:59.7]} 15. h4 {[%clk 0:02:05.4]} 15...
f6 {[%clk 0:01:56.2]} 16. hxg5 {[%clk 0:02:00.2]} 16... fxg5 {[%clk 0:01:55.6]}
17. Bd2 {[%clk 0:01:56.4]} 17... O-O-O {[%clk 0:01:53.7]} 18. Qe2 {[%clk
0:01:55.7]} 18... Kb8 {[%clk 0:01:40.3]} 19. O-O-O {[%clk 0:01:54.6]} 19... a5
{[%clk 0:01:38.4]} 20. Nf5 {[%clk 0:01:38.3]} 20... Bf8 {[%clk 0:01:31.5]} 21.
Rdg1 {[%clk 0:01:10.9]} 21... a4 {[%clk 0:01:30.7]} 22. Bh3 {[%clk 0:01:02.2]}
22... axb3 {[%clk 0:01:26.1]} 23. axb3 {[%clk 0:01:01.6]} 23... c4 {[%clk
0:01:21.2]} 24. dxc4 {[%clk 0:00:56.7]} 24... d3 {[%clk 0:01:11.3]} 25. Qxd3
{[%clk 0:00:53.4]} 25... Qc7 {[%clk 0:00:45.5]} 26. Qe3 {[%clk 0:00:34.4]} 26...
Nb4 {[%clk 0:00:44.5]} 27. Bc3 {[%clk 0:00:30.8]} 27... Qa5 {[%clk 0:00:34.5]}
28. Bxe5+ {[%clk 0:00:22.4]} 28... Ka8 {[%clk 0:00:34.4]} 29. Bb2 {[%clk
0:00:22.9]} 29... Bc5 {[%clk 0:00:30.6]} 30. N3d4 {[%clk 0:00:20.4]} 30... Qa2
{[%clk 0:00:15.7]} 31. Rd1 {[%clk 0:00:12.8]} 31... g4 {[%clk 0:00:13]} 32. Bg2
{[%clk 0:00:12.3]} 32... Bxf5 {[%clk 0:00:12.6]} 33. exf5 {[%clk 0:00:12]} 33...
Nf6 {[%clk 0:00:11.3]} 34. Qc3 {[%clk 0:00:09.9]} 34... Rd6 {[%clk 0:00:07.3]}
35. Nb5 {[%clk 0:00:09.6]} 35... Ra6 {[%clk 0:00:06.3]} 36. Nc7+ {[%clk
0:00:09.5]} 36... Ka7 {[%clk 0:00:05.9]} 37. Nxa6 {[%clk 0:00:10]} 37... Nxa6
{[%clk 0:00:06.2]} 38. Qxf6 {[%clk 0:00:09.9]} 38... Bxf2 {[%clk 0:00:05.1]} 39.
Bd4+ {[%clk 0:00:08.3]} 39... Bxd4 {[%clk 0:00:03.6]} 40. Qxd4+ {[%clk
0:00:09.2]} 40... Ka8 {[%clk 0:00:03.9]} 41. Qb2 {[%clk 0:00:09.9]} 41... Qa5
{[%clk 0:00:02.8]} 42. h6 {[%clk 0:00:10.1]} 42... Qc5 {[%clk 0:00:02.3]} 43. h7
{[%clk 0:00:10.1]} 43... Qe3+ {[%clk 0:00:02.1]} 44. Kb1 {[%clk 0:00:10]} 1-0

[Event "*** Titled Tuesday Blitz"]
[Site "Chess.com"]
[Date "2020.04.28"]
[Round "2"]
[White "bazar-wokzal"]
[Black "dretch"]
[Result "0-1"]
[WhiteElo "2502"]
[BlackElo "2760"]
[TimeControl "180+1"]
[EndTime "10:18:21 PDT"]
[Termination "dretch won on time"]

1. e4 {[%clk 0:03:00.9]} 1... e6 {[%clk 0:02:54.2]} 2. d4 {[%clk 0:03:00.5]}
2... d5 {[%clk 0:02:54.6]} 3. exd5 {[%clk 0:03:01.2]} 3... exd5 {[%clk
0:02:54.6]} 4. Nf3 {[%clk 0:03:01.8]} 4... Bd6 {[%clk 0:02:53.9]} 5. c4 {[%clk
0:03:01.8]} 5... Nf6 {[%clk 0:02:46.6]} 6. c5 {[%clk 0:03:01.2]} 6... Be7 {[%clk
0:02:46.4]} 7. Bd3 {[%clk 0:03:01.8]} 7... b6 {[%clk 0:02:43.5]} 8. cxb6 {[%clk
0:03:01.2]} 8... axb6 {[%clk 0:02:43.2]} 9. O-O {[%clk 0:03:01.8]} 9... O-O
{[%clk 0:02:43.1]} 10. Re1 {[%clk 0:03:02.1]} 10... Nc6 {[%clk 0:02:39.4]} 11.
Nc3 {[%clk 0:03:00.9]} 11... Bg4 {[%clk 0:02:37.6]} 12. Nb5 {[%clk 0:03:01]}
12... Nb4 {[%clk 0:02:27.7]} 13. Bb1 {[%clk 0:02:57.2]} 13... Re8 {[%clk
0:02:06.5]} 14. Bf4 {[%clk 0:02:46.7]} 14... Bf8 {[%clk 0:00:28.2]} 15. Rxe8
{[%clk 0:02:19]} 15... Nxe8 {[%clk 0:00:29.1]} 16. h3 {[%clk 0:02:14.3]} 16...
Bh5 {[%clk 0:00:26.1]} 17. a3 {[%clk 0:02:07.9]} 17... Qf6 {[%clk 0:00:18.5]}
18. Be5 {[%clk 0:01:53.6]} 18... Bxf3 {[%clk 0:00:16.6]} 19. Qxf3 {[%clk
0:01:52.8]} 19... Qxf3 {[%clk 0:00:16.7]} 20. gxf3 {[%clk 0:01:53]} 20... c6
{[%clk 0:00:17]} 21. Nc3 {[%clk 0:01:46.3]} 21... g6 {[%clk 0:00:16.6]} 22. Kf1
{[%clk 0:01:34.3]} 22... Bd6 {[%clk 0:00:15.7]} 23. f4 {[%clk 0:01:30.6]} 23...
f6 {[%clk 0:00:15.2]} 24. Bxd6 {[%clk 0:01:29.2]} 24... Nxd6 {[%clk 0:00:16.1]}
25. Na2 {[%clk 0:01:10.7]} 25... Nxa2 {[%clk 0:00:16.1]} 26. Bxa2 {[%clk
0:01:10.8]} 26... Nf5 {[%clk 0:00:16.6]} 27. Rd1 {[%clk 0:01:09.8]} 27... Ra4
{[%clk 0:00:15.7]} 28. Rc1 {[%clk 0:00:50.9]} 28... Nxd4 {[%clk 0:00:15.3]} 29.
f5 {[%clk 0:00:45.2]} 29... Kf7 {[%clk 0:00:14.3]} 30. fxg6+ {[%clk 0:00:44.6]}
30... hxg6 {[%clk 0:00:15.2]} 31. Rc3 {[%clk 0:00:40.2]} 31... f5 {[%clk
0:00:11.4]} 32. h4 {[%clk 0:00:34.9]} 32... Kf6 {[%clk 0:00:07.3]} 33. Kg2
{[%clk 0:00:24.5]} 33... Ke5 {[%clk 0:00:06.5]} 34. Rg3 {[%clk 0:00:21.8]} 34...
Ne6 {[%clk 0:00:06.1]} 35. Re3+ {[%clk 0:00:12.3]} 35... Kf6 {[%clk 0:00:04.7]}
36. Rc3 {[%clk 0:00:09.4]} 36... c5 {[%clk 0:00:03.7]} 37. Kf3 {[%clk 0:00:06]}
37... Rf4+ {[%clk 0:00:03.5]} 38. Kg3 {[%clk 0:00:04.3]} 38... Rd4 {[%clk
0:00:04.4]} 39. Rb3 {[%clk 0:00:02.7]} 39... c4 {[%clk 0:00:01.9]} 40. Rxb6
{[%clk 0:00:02.5]} 40... Rd3+ {[%clk 0:00:02.3]} 0-1

[Event "*** Titled Tuesday Blitz"]
[Site "Chess.com"]
[Date "2020.04.28"]
[Round "2"]
[White "AttilaTurzo"]
[Black "Baby_Legs"]
[Result "0-1"]
[WhiteElo "2485"]
[BlackElo "2722"]
[TimeControl "180+1"]
[EndTime "10:18:21 PDT"]
[Termination "Baby_Legs won on time"]

1. e4 {[%clk 0:03:00.9]} 1... c6 {[%clk 0:02:58.3]} 2. d4 {[%clk 0:03:00]} 2...
d5 {[%clk 0:02:57.8]} 3. Nc3 {[%clk 0:03:00.9]} 3... g6 {[%clk 0:02:55.1]} 4.
Nf3 {[%clk 0:02:52.2]} 4... Bg7 {[%clk 0:02:54.9]} 5. h3 {[%clk 0:02:51.5]} 5...
dxe4 {[%clk 0:02:53.7]} 6. Nxe4 {[%clk 0:02:51.3]} 6... Nf6 {[%clk 0:02:54.3]}
7. Bd3 {[%clk 0:02:49.6]} 7... O-O {[%clk 0:02:52.7]} 8. O-O {[%clk 0:02:49.4]}
8... a5 {[%clk 0:02:52.8]} 9. Re1 {[%clk 0:02:48.6]} 9... Na6 {[%clk 0:02:52.3]}
10. c3 {[%clk 0:02:47.6]} 10... Nc7 {[%clk 0:02:50.2]} 11. Bg5 {[%clk
0:02:45.9]} 11... Ncd5 {[%clk 0:02:41.5]} 12. Qd2 {[%clk 0:02:44.9]} 12... Re8
{[%clk 0:02:37.9]} 13. Bh6 {[%clk 0:02:44.1]} 13... Bh8 {[%clk 0:02:37.7]} 14.
Rad1 {[%clk 0:02:41.1]} 14... Nc7 {[%clk 0:01:48.5]} 15. Neg5 {[%clk 0:02:38.1]}
15... Bg7 {[%clk 0:01:29.4]} 16. Bxg7 {[%clk 0:02:16.6]} 16... Kxg7 {[%clk
0:01:30.3]} 17. Ne5 {[%clk 0:02:17.1]} 17... Rf8 {[%clk 0:01:24.6]} 18. Qf4
{[%clk 0:02:04.5]} 18... Ncd5 {[%clk 0:00:41.3]} 19. Qh4 {[%clk 0:02:01.7]}
19... Qc7 {[%clk 0:00:34.9]} 20. c4 {[%clk 0:01:38.2]} 20... Nb4 {[%clk
0:00:34.2]} 21. Bb1 {[%clk 0:01:30.3]} 21... b6 {[%clk 0:00:32.3]} 22. a3 {[%clk
0:01:22.9]} 22... Na6 {[%clk 0:00:32.3]} 23. Re3 {[%clk 0:01:13.8]} 23... Bd7
{[%clk 0:00:24.5]} 24. Rg3 {[%clk 0:01:10.8]} 24... Be8 {[%clk 0:00:24]} 25. Ng4
{[%clk 0:00:59.8]} 25... h5 {[%clk 0:00:20.6]} 26. Nxf6 {[%clk 0:00:39.4]} 26...
exf6 {[%clk 0:00:21.5]} 27. Ne4 {[%clk 0:00:39.8]} 27... f5 {[%clk 0:00:17.9]}
28. Qf6+ {[%clk 0:00:34.2]} 28... Kg8 {[%clk 0:00:15.5]} 29. Qxf5 {[%clk
0:00:31.8]} 29... Qxg3 {[%clk 0:00:15]} 30. Nf6+ {[%clk 0:00:25.8]} 30... Kg7
{[%clk 0:00:15.2]} 31. Nxh5+ {[%clk 0:00:25.1]} 31... Kh6 {[%clk 0:00:14.5]} 32.
Qf6 {[%clk 0:00:14.7]} 32... Qc7 {[%clk 0:00:13]} 33. Qg7+ {[%clk 0:00:12.4]}
33... Kxh5 {[%clk 0:00:13.2]} 34. g4+ {[%clk 0:00:08]} 34... Kg5 {[%clk
0:00:12.2]} 35. Qxf8 {[%clk 0:00:08]} 35... Qf4 {[%clk 0:00:10.8]} 36. Re1
{[%clk 0:00:04.2]} 36... Rd8 {[%clk 0:00:10]} 37. Qe7+ {[%clk 0:00:03.3]} 37...
Kh6 {[%clk 0:00:09.2]} 38. Qxd8 {[%clk 0:00:02.8]} 38... Nc7 {[%clk 0:00:06.1]}
0-1